fUSD/lending_fUSD_20250405
["ID","MTS","AMOUNT","RATE_DAILY","PERIOD"]
[357188784,1743875436425,-2000.0,0.00030684,2]
[357188785,1743875436435,-500.0,0.00030684,2]
[357188786,1743875436444,-500.0,0.00030684,2]
[357188787,1743875436453,-543.84,0.00030684,2]
[357188788,1743875436463,-500.0,0.00030684,2]
[357188789,1743875436472,-500.0,0.00030684,2]
[357188790,1743875436482,-500.0,0.00030684,2]
[357188791,1743875436491,-500.0,0.00030684,2]
[357188792,1743875436501,-500.0,0.00030684,2]
[357188793,1743875436510,-254.29354101,0.00030684,2]
[357188794,1743875436519,-647.6,0.00030684,2]
[357188795,1743875436529,-1582.96,0.00030684,2]
[357188796,1743875436538,-500.0,0.00030684,2]
[357188797,1743875436547,-500.0,0.00030684,2]
[357188798,1743875436556,-500.0,0.00030684,2]
[357188799,1743875436565,-500.0,0.00030684,2]
[357188800,1743875436575,-500.0,0.00030684,2]
[357188801,1743875436584,-500.0,0.00030684,2]
[357188802,1743875436593,-233.45861766,0.00030684,2]
[357188803,1743875436602,-500.0,0.00030684,2]
[357188804,1743875436612,-500.0,0.00030684,2]
[357188805,1743875436621,-500.0,0.00030684,2]
[357188806,1743875436630,-500.0,0.00030684,2]
[357188807,1743875436640,-536.38,0.00030684,2]
[357188808,1743875436649,-500.0,0.00030684,2]
[357188809,1743875436658,-500.0,0.00030684,2]
[357188810,1743875436668,-608.44,0.00030684,2]
[357188811,1743875436679,-500.0,0.00030684,2]
[357188812,1743875436688,-561.96,0.00030684,2]
[357188813,1743875436698,-500.0,0.00030684,2]
[357188814,1743875436707,-500.0,0.00030684,2]
[357188815,1743875436717,-51.31822715,0.00030684,2]
[357188816,1743875436732,-448.68177285,0.00030684,2]
[357188817,1743875436741,-500.0,0.00030684,2]
[357188818,1743875436751,-500.0,0.00030684,2]
[357188819,1743875436761,-500.0,0.00030684,2]
[357188820,1743875436770,-500.0,0.00030684,2]
[357188821,1743875436779,-500.0,0.00030684,2]
[357188822,1743875436789,-500.0,0.00030684,2]
[357188823,1743875436798,-500.0,0.00030684,2]
[357188824,1743875436807,-500.0,0.00030684,2]
[357188825,1743875436816,-500.0,0.00030684,2]
[357188826,1743875436826,-500.0,0.00030684,2]
[357188827,1743875436835,-500.0,0.00030684,2]
[357188828,1743875436844,-500.0,0.00030684,2]
[357188829,1743875436853,-500.0,0.00030684,2]
[357188830,1743875436862,-500.0,0.00030684,2]
[357188831,1743875436871,-508.76,0.00030684,2]
[357188832,1743875436880,-500.0,0.00030684,2]
[357188833,1743875436890,-500.0,0.00030684,2]
[357188834,1743875436900,-539.3872193,0.00030684,2]
[357188835,1743875436909,-500.0,0.00030684,2]
[357188836,1743875436918,-1542.85,0.00030684,2]
[357188837,1743875436927,-500.0,0.00030684,2]
[357188838,1743875436937,-500.0,0.00030684,2]
[357188839,1743875436946,-500.0,0.00030684,2]
[357188840,1743875436955,-500.0,0.00030684,2]
[357188841,1743875436964,-9386.71,0.00030684,2]
[357188842,1743875436973,-500.0,0.00030684,2]
[357188843,1743875436983,-500.0,0.00030684,2]
[357188844,1743875436992,-500.0,0.00030684,2]
[357188845,1743875437001,-718.92,0.00030684,2]
[357188846,1743875437010,-761.88,0.00030684,2]
[357188847,1743875437020,-647.63,0.00030684,2]
[357188848,1743875437029,-1296.98,0.00030684,2]
[357188849,1743875437038,-500.0,0.00030684,2]
[357188850,1743875437048,-500.0,0.00030684,2]
[357188851,1743875437058,-778.79,0.00030684,2]
[357188852,1743875437067,-526.45,0.00030684,2]
[357188853,1743875437077,-500.0,0.00030684,2]
[357188854,1743875437087,-862.42,0.00030684,2]
[357188855,1743875437097,-810.0,0.00030684,2]
[357188856,1743875437107,-500.0,0.00030684,2]
[357188857,1743875437117,-500.0,0.00030684,2]
[357188858,1743875437127,-1670.54100785,0.00030684,2]
[357188859,1743875437140,-3003.05899215,0.00030684,2]
[357188860,1743875437150,-500.0,0.00030684,2]
[357188861,1743875437161,-500.0,0.00030684,2]
[357188862,1743875437172,-500.0,0.00030684,2]
[357188863,1743875437181,-6056.29,0.00030684,2]
[357188864,1743875437190,-500.0,0.00030684,2]
[357188865,1743875437199,-1616.33,0.00030684,2]
[357188866,1743875437208,-500.0,0.00030684,2]
[357188867,1743875437217,-683.66,0.00030684,2]
[357188868,1743875437227,-299.19015987,0.00030684,2]
[357188869,1743875437236,-500.0,0.00030684,2]
[357188870,1743875437245,-11280.77,0.00030684,2]
[357188871,1743875437255,-857.45,0.00030684,2]
[357188872,1743875437264,-571.13,0.00030684,2]
[357188873,1743875437273,-503.28,0.00030684,2]
[357188874,1743875437282,-500.0,0.00030684,2]
[357188875,1743875437292,-1525.7,0.00030684,2]
[357188876,1743875437301,-500.0,0.00030684,2]
[357188877,1743875437310,-500.0,0.00030684,2]
[357188878,1743875437320,-500.0,0.00030684,2]
[357188879,1743875437330,-500.0,0.00030684,2]
[357188880,1743875437340,-1387.9,0.00030684,2]
[357188881,1743875437349,-500.0,0.00030684,2]
[357188882,1743875437358,-159.42212613,0.00030858,2]
[357188883,1743875437367,-19975.5447444,0.00030928,3]
[357188884,1743875437377,-42173.55335711,0.00030938,3]
[357188902,1743875437865,-435.64251965,0.00030136,2]
[357188903,1743875437876,-131.11748035,0.00030136,2]
[357188904,1743875437885,-566.76,0.0003041,2]
[357188905,1743875437895,-566.76,0.00030684,2]
[357188906,1743875437904,-2656.91793127,0.00030938,3]
[357188907,1743875437915,-902.87729513,0.00030938,3]
[357188908,1743875437927,-781.5493734,0.00030938,3]
[357188909,1743875437938,-1272.01274265,0.00030938,3]
[357188910,1743875437949,-567.5000001,0.00030938,3]
[357188911,1743875437960,-377.8065,0.00030938,3]
[357188912,1743875437978,-511.64502855,0.00030938,3]
[357188913,1743875438034,-1448.48055807,0.00030938,3]
[357188914,1743875438046,-1995.70000001,0.00030938,3]
[357188915,1743875438211,-419.33153998,0.00030938,3]
[357188916,1743875438223,-1961.65851642,0.00030938,3]
[357188917,1743875438235,-417.89133502,0.00030938,3]
[357188920,1743875440127,-0.02356792,0.00030938,3]
[357188966,1743875440906,-3358.87552,0.00030938,3]
[357188968,1743875440917,-298.48856535,0.00030938,3]
[357188970,1743875440929,-782.32240232,0.00030938,3]
[357188972,1743875440939,-1002.02529139,0.00030948,3]
[357188975,1743875440954,-771.144,0.00030948,3]
[357188978,1743875440970,-1466.43173063,0.00030948,3]
[357188980,1743875440983,-36711.48846678,0.00030948,3]
[357188982,1743875440992,-589.6,0.00030957,2]
[357188984,1743875441001,-893.87,0.00030957,2]
[357188986,1743875441011,-500.0,0.00030958,2]
[357188988,1743875441021,-500.0,0.00030958,2]
[357188990,1743875441030,-500.0,0.00030958,2]
[357188992,1743875441040,-500.0,0.00030958,2]
[357188994,1743875441049,-938.94,0.00030958,2]
[357188996,1743875441059,-2000.0,0.00030958,2]
[357188998,1743875441069,-500.0,0.00030958,2]
[357189000,1743875441079,-500.0,0.00030958,2]
[357189002,1743875441088,-543.84,0.00030958,2]
[357189004,1743875441098,-500.0,0.00030958,2]
[357189006,1743875441107,-500.0,0.00030958,2]
[357189008,1743875441117,-500.0,0.00030958,2]
[357189009,1743875441126,-500.0,0.00030958,2]
[357189010,1743875441137,-647.6,0.00030958,2]
[357189011,1743875441147,-1582.96,0.00030958,2]
[357189012,1743875441157,-500.0,0.00030958,2]
[357189013,1743875441166,-500.0,0.00030958,2]
[357189014,1743875441176,-500.0,0.00030958,2]
[357189015,1743875441186,-372.68010952,0.00030958,2]
[357189016,1743875441195,-500.0,0.00030958,2]
[357189017,1743875441206,-500.0,0.00030958,2]
[357189018,1743875441215,-500.0,0.00030958,2]
[357189019,1743875441225,-500.0,0.00030958,2]
[357189020,1743875441234,-500.0,0.00030958,2]
[357189021,1743875441244,-500.0,0.00030958,2]
[357189022,1743875441253,-536.38,0.00030958,2]
[357189023,1743875441263,-238.59862768,0.00030958,2]
[357189024,1743875441273,-500.0,0.00030958,2]
[357189025,1743875441283,-608.44,0.00030958,2]
[357189026,1743875441293,-500.0,0.00030958,2]
[357189027,1743875441303,-561.96,0.00030958,2]
[357189028,1743875441313,-500.0,0.00030958,2]
[357189029,1743875441322,-500.0,0.00030958,2]
[357189030,1743875441331,-500.0,0.00030958,2]
[357189031,1743875441341,-500.0,0.00030958,2]
[357189032,1743875441350,-500.0,0.00030958,2]
[357189033,1743875441360,-500.0,0.00030958,2]
[357189034,1743875441369,-500.0,0.00030958,2]
[357189035,1743875441379,-500.0,0.00030958,2]
[357189036,1743875441389,-500.0,0.00030958,2]
[357189037,1743875441399,-500.0,0.00030958,2]
[357189038,1743875441409,-500.0,0.00030958,2]
[357189039,1743875441418,-500.0,0.00030958,2]
[357189040,1743875441427,-500.0,0.00030958,2]
[357189041,1743875441437,-500.0,0.00030958,2]
[357189042,1743875441447,-500.0,0.00030958,2]
[357189043,1743875441457,-500.0,0.00030958,2]
[357189044,1743875441467,-508.76,0.00030958,2]
[357189045,1743875441478,-500.0,0.00030958,2]
[357189046,1743875441488,-453.98488737,0.00030958,2]
[357189047,1743875441498,-500.0,0.00030958,2]
[357189048,1743875441507,-1542.85,0.00030958,2]
[357189049,1743875441517,-159.8974837,0.00030958,2]
[357189050,1743875441526,-500.0,0.00030958,2]
[357189051,1743875441535,-500.0,0.00030958,2]
[357189052,1743875441545,-500.0,0.00030958,2]
[357189053,1743875441554,-9386.71,0.00030958,2]
[357189054,1743875441565,-500.0,0.00030958,2]
[357189055,1743875441575,-500.0,0.00030958,2]
[357189056,1743875441585,-500.0,0.00030958,2]
[357189057,1743875441594,-512.66144861,0.00030958,2]
[357189058,1743875441607,-206.25855139,0.00030958,2]
[357189059,1743875441616,-208.28144861,0.00030958,2]
[357189116,1743875443812,-610.38709865,0.00030136,2]
[357189118,1743875443822,-262.65443923,0.00030958,2]
[357189157,1743875926669,10000.0,8.2e-07,2]
[357189222,1743876632282,-290.17419941,0.000199,2]
[357189223,1743876632292,-41.72238533,0.0002,4]
[357189224,1743876632370,-670.27761467,0.0002,4]
[357189225,1743876632380,-500.0,0.0002,2]
[357189226,1743876632389,-500.0,0.0002,2]
[357189227,1743876632399,-500.0,0.0002,2]
[357189228,1743876632408,-251.36712798,0.0002,2]
[357189229,1743876632418,-417.32,0.00026849,2]
[357189230,1743876632428,-213.29,0.00029735,2]
[357189231,1743876632438,-513.34,0.00029785,2]
[357189232,1743876632448,-150.0,0.00030126,2]
[357189233,1743876632457,-436.735,0.00030135,25]
[357189234,1743876632467,-185.66,0.00030135,25]
[357189235,1743876632477,-300.0,0.00030135,2]
[357189236,1743876632487,-500.0,0.00030136,2]
[357189237,1743876632496,-507.70817204,0.00030136,2]
[357189238,1743876632506,-500.0,0.00030136,2]
[357189239,1743876632515,-500.0,0.00030136,2]
[357189240,1743876632524,-500.0,0.00030136,2]
[357189241,1743876632533,-500.0,0.00030136,2]
[357189242,1743876632543,-590.2043684,0.00030136,2]
[357189243,1743876632552,-502.05865977,0.00030136,2]
[357189244,1743876632562,-500.0,0.00030136,2]
[357189245,1743876632571,-298.3724225,0.00030136,2]
[357189246,1743876632580,-504.15614968,0.00030136,2]
[357189247,1743876632590,-500.0,0.00030136,2]
[357189248,1743876632599,-500.0,0.00030136,2]
[357189249,1743876632608,-274.51952349,0.00030136,2]
[357189250,1743876632618,-500.0,0.00030136,2]
[357189251,1743876632627,-500.0,0.00030136,2]
[357189252,1743876632636,-500.0,0.00030136,2]
[357189254,1743876632646,-500.0,0.00030136,2]
[357189256,1743876632655,-500.0,0.00030136,2]
[357189258,1743876632665,-501.23573752,0.00030136,2]
[357189260,1743876632674,-502.1845104,0.00030136,2]
[357189261,1743876632683,-500.0,0.00030136,2]
[357189263,1743876632692,-500.0,0.00030136,2]
[357189266,1743876632702,-510.24306216,0.00030136,2]
[357189268,1743876632711,-500.0,0.00030136,2]
[357189269,1743876632720,-500.0,0.00030136,2]
[357189271,1743876632730,-500.0,0.00030136,2]
[357189273,1743876632739,-500.0,0.00030136,2]
[357189275,1743876632748,-265.51654825,0.00030136,2]
[357189277,1743876632758,-500.0,0.00030136,2]
[357189279,1743876632768,-500.0,0.00030136,2]
[357189281,1743876632777,-500.51914507,0.00030136,2]
[357189283,1743876632786,-501.02262948,0.00030136,2]
[357189285,1743876632795,-500.0,0.00030136,2]
[357189287,1743876632804,-500.3854986,0.00030136,2]
[357189289,1743876632813,-537.90731929,0.00030136,2]
[357189291,1743876632822,-455.2137787,0.00030136,2]
[357189293,1743876632831,-500.0,0.00030136,2]
[357189295,1743876632841,-500.0,0.00030136,2]
[357189297,1743876632850,-500.0,0.00030136,2]
[357189299,1743876632860,-500.0,0.00030136,2]
[357189301,1743876632869,-500.0,0.00030136,2]
[357189303,1743876632878,-328.49599276,0.00030136,2]
[357189305,1743876632887,-501.0,0.00030136,2]
[357189307,1743876632896,-500.0,0.00030136,2]
[357189309,1743876632906,-500.0,0.00030136,2]
[357189311,1743876632915,-500.0,0.00030136,2]
[357189313,1743876632924,-500.0,0.00030136,2]
[357189314,1743876632933,-1000.0,0.00030149,2]
[357189316,1743876632942,-150.0,0.00030203,7]
[357189318,1743876632952,-3909.8707,0.0003031,2]
[357189320,1743876632962,-500.0,0.0003041,2]
[357189321,1743876632971,-500.0,0.0003041,2]
[357189323,1743876632982,-37.89087152,0.0003041,2]
[357189326,1743876633000,-366.77507284,0.0003041,2]
[357189328,1743876633010,-258.42430333,0.0003041,2]
[357189331,1743876633023,-277.830398,0.0003041,2]
[357189333,1743876633032,-510.16357158,0.0003041,2]
[357189335,1743876633042,-524.70016542,0.0003041,2]
[357189337,1743876633052,-500.0,0.0003041,2]
[357189339,1743876633062,-520.7514897,0.0003041,2]
[357189341,1743876633070,-500.0,0.0003041,2]
[357189343,1743876633083,-538.70728612,0.0003041,2]
[357189344,1743876633093,-169.78080606,0.0003041,2]
[357189346,1743876633103,-500.0,0.0003041,2]
[357189348,1743876633113,-500.0,0.0003041,2]
[357189350,1743876633122,-500.0,0.0003041,2]
[357189352,1743876633134,-500.0,0.0003041,2]
[357189354,1743876633143,-519.05196203,0.0003041,2]
[357189356,1743876633153,-145.73494143,0.0003041,2]
[357189584,1743876638101,-157.84405697,0.0003041,2]
[357189585,1743876638112,-349.80075587,0.0003041,2]
[357189586,1743876638159,-150.19924413,0.0003041,2]
[357189587,1743876638170,-500.0,0.0003041,2]
[357189588,1743876638180,-512.50027143,0.0003041,2]
[357189589,1743876638190,-500.0,0.0003041,2]
[357189590,1743876638199,-500.0,0.0003041,2]
[357189591,1743876638209,-500.0,0.0003041,2]
[357189592,1743876638218,-500.0,0.0003041,2]
[357189593,1743876638228,-471.81462293,0.0003041,2]
[357189594,1743876638237,-500.0,0.0003041,2]
[357189595,1743876638247,-500.0,0.0003041,2]
[357189596,1743876638256,-306.64734105,0.0003041,2]
[357189597,1743876638268,-193.35265895,0.0003041,2]
[357189598,1743876638277,-500.0,0.0003041,2]
[357189599,1743876638287,-190.52,0.00030517,2]
[357189600,1743876638296,-158.95689758,0.00030575,2]
[357189601,1743876638308,-41.04310242,0.00030575,2]
[357189602,1743876638318,-1408.5587,0.00030584,2]
[357189603,1743876638329,-472.3947927,0.0003065,2]
[357189604,1743876638338,-6072.28502242,0.0003065,2]
[357189796,1743876640345,-1951.58178765,0.0003065,2]
[357189798,1743876640357,-3513.91110301,0.0003065,2]
[357189800,1743876640368,-480.4170227,0.0003065,2]
[357189813,1743876640510,-9594.65962007,0.0003065,2]
[357189815,1743876640520,-422.97095707,0.00030656,2]
[357189816,1743876640530,-500.0,0.00030683,2]
[357189818,1743876640540,-539.67,0.00030683,2]
[357189820,1743876640549,-500.0,0.00030683,2]
[357189822,1743876640558,-500.0,0.00030683,2]
[357189824,1743876640568,-500.0,0.00030683,2]
[357189825,1743876640577,-500.0,0.00030683,2]
[357189827,1743876640586,-500.0,0.00030683,2]
[357189829,1743876640596,-384.65878463,0.00030683,2]
[357189831,1743876640606,-533.49,0.00030683,2]
[357189832,1743876640616,-1285.71,0.00030683,2]
[357189834,1743876640626,-500.0,0.00030683,2]
[357189836,1743876640636,-500.0,0.00030683,2]
[357189838,1743876640645,-500.0,0.00030683,2]
[357189840,1743876640655,-500.0,0.00030683,2]
[357189842,1743876640664,-500.0,0.00030683,2]
[357189844,1743876640674,-500.0,0.00030683,2]
[357189845,1743876640683,-500.0,0.00030683,2]
[357189847,1743876640692,-500.0,0.00030683,2]
[357189849,1743876640702,-500.0,0.00030683,2]
[357189851,1743876640712,-782.13,0.00030683,2]
[357189852,1743876640721,-500.0,0.00030683,2]
[357189854,1743876640731,-500.0,0.00030683,2]
[357189856,1743876640740,-500.0,0.00030683,2]
[357189858,1743876640750,-500.0,0.00030683,2]
[357189860,1743876640760,-500.0,0.00030683,2]
[357189862,1743876640769,-500.0,0.00030683,2]
[357189864,1743876640779,-500.0,0.00030683,2]
[357189865,1743876640788,-500.0,0.00030683,2]
[357189867,1743876640798,-500.0,0.00030683,2]
[357189869,1743876640807,-1134.86,0.00030683,2]
[357189870,1743876640816,-500.0,0.00030683,2]
[357189871,1743876640826,-500.0,0.00030683,2]
[357189872,1743876641020,-754.62,0.00030683,2]
[357189874,1743876641029,-500.0,0.00030683,2]
[357189875,1743876641039,-500.0,0.00030683,2]
[357189876,1743876641048,-500.0,0.00030683,2]
[357189877,1743876641058,-1334.99,0.00030683,2]
[357189878,1743876641067,-500.0,0.00030683,2]
[357189879,1743876641076,-500.0,0.00030683,2]
[357189880,1743876641090,-515.97,0.00030683,2]
[357189881,1743876641099,-1319.14,0.00030683,2]
[357189882,1743876641108,-500.0,0.00030684,2]
[357189883,1743876641117,-500.0,0.00030684,2]
[357189884,1743876641127,-500.0,0.00030684,2]
[357189885,1743876641138,-596.8811798,0.00030684,2]
[357189886,1743876641148,-500.38977057,0.00030684,2]
[357189887,1743876641157,-500.0,0.00030684,2]
[357189888,1743876641167,-526.723128,0.00030684,2]
[357189889,1743876641176,-500.0,0.00030684,2]
[357189890,1743876641186,-515.88244108,0.00030684,2]
[357189891,1743876641195,-500.70730985,0.00030684,2]
[357189893,1743876641205,-500.34773341,0.00030684,2]
[357189895,1743876641214,-500.0,0.00030684,2]
[357189896,1743876641224,-381.26472235,0.00030684,2]
[357189898,1743876641233,-500.0,0.00030684,2]
[357189900,1743876641242,-244.04609751,0.00030684,2]
[357189901,1743876641252,-483.73191866,0.00030684,2]
[357190163,1743876677934,168.06,0.00013699,2]
[357190164,1743876800901,-172.67877309,0.00028274,2]
[357190165,1743876816130,-167.8371,0.00019,2]
[357190166,1743876818936,-82.1629,0.00019,2]
[357190167,1743876818958,-165.11349362,0.00021,2]
[357190168,1743876822214,-134.88650638,0.00021,2]
[357190169,1743876822237,-40.25349362,0.00023,2]
[357190170,1743876840860,-296.49268158,0.00023,2]
[357190171,1743876902284,-13.2538248,0.00023,2]
[357190172,1743876902306,-149.96349031,0.00025,2]
[357190173,1743876905239,-174.11,0.00025,2]
[357190174,1743877022468,-75.92650969,0.00025,2]
[357190175,1743877022488,-88.40340883,0.00027,2]
[357190176,1743877030726,-155.76,0.000259,5]
[357190177,1743877061880,-167.8371,0.000259,5]
[357190178,1743877537121,-152.735,0.00019,2]
[357190182,1743877624054,-14.87600021,0.00019,2]
[357190183,1743877624077,-169.49399979,0.00019999,2]
[357190184,1743877638168,-300.0,0.000196,7]
[357190185,1743877638194,-55.28920905,0.000197,7]
[357190186,1743877678472,3692.32082866,0.0001,2]
[357190187,1743877682233,6139.61917134,0.00015,2]
[357190188,1743877682261,1064564.98847281,0.00015,2]
[357190189,1743877682286,1234404.90067547,0.00015,2]
[357190190,1743877682314,440000.0,0.00015,2]
[357190191,1743877682339,4699.28224958,0.00015,2]
[357190192,1743877682364,4699.28224958,0.00015,2]
[357190193,1743877682388,4699.28224958,0.00015,2]
[357190194,1743877682412,4699.28224958,0.00015,2]
[357190195,1743877682437,4699.28224958,0.00015,2]
[357190196,1743877682466,4699.28224958,0.00015,2]
[357190197,1743877682492,4699.28224958,0.00015,2]
[357190198,1743877682517,4699.28224958,0.00015,2]
[357190199,1743877682543,4699.28224958,0.00015,2]
[357190200,1743877682568,4699.28224958,0.00015,2]
[357190201,1743877682602,697629.44616927,0.00015,2]
[357190202,1743877683961,-171.55554644,0.000197,7]
[357190204,1743877745016,-158.57130424,0.000197,7]
[357190205,1743877749260,-194.83188909,0.000197,7]
[357190206,1743877759531,-19.75205118,0.000197,7]
[357190207,1743877759556,-182.13046706,0.000198,7]
[357190212,1743877782779,168.06,0.00013699,2]
[357190213,1743877790055,-176.79686465,0.000198,7]
[357190217,1743877812310,-541.07266829,0.000198,7]
[357190218,1743877812334,-24.38688532,0.000199,7]
[357190231,1743877832289,-756.43989339,0.000199,7]
[357190232,1743877832300,-419.17322129,0.000199,7]
[357190233,1743877832309,-267.39447054,0.000199,2]
[357190234,1743877832318,-509.37794222,0.000199,2]
[357190235,1743877832342,-280.49315615,0.000199,2]
[357190236,1743877832354,-194.38910305,0.000199,2]
[357190237,1743877832363,-57.53304598,0.000199,2]
[357190238,1743877832374,-186.29365848,0.000199,2]
[357190239,1743877832383,-245.16389744,0.000199,2]
[357190240,1743877832452,-61.95642844,0.000199,2]
[357190241,1743877832461,-1123.88069696,0.000199,2]
[357190242,1743877832507,-1733.82731512,0.000199,2]
[357190243,1743877832564,-8765.51776492,0.000199,2]
[357190244,1743877832576,-791.13640838,0.000199,2]
[357190245,1743877832585,-200.25255488,0.00019973,2]
[357190246,1743877832594,-311.73011261,0.00019973,2]
[357190247,1743877832604,-403.44864785,0.00019973,2]
[357190248,1743877832613,-500.0,0.00019973,2]
[357190249,1743877832622,-500.0,0.00019973,2]
[357190250,1743877832631,-353.40319333,0.00019973,2]
[357190251,1743877832640,-378.67938289,0.00019973,2]
[357190252,1743877832649,-343.17384442,0.0001999,2]
[357190253,1743877832658,-300.0,0.00019999,2]
[357190254,1743877832667,-12582.65809072,0.0002,2]
[357190256,1743877832678,-6099.9999999,0.0002,2]
[357190258,1743877832690,-5880.0,0.0002,2]
[357190260,1743877832700,-3550.000005,0.0002,2]
[357190262,1743877832711,-1300.0,0.0002,2]
[357190356,1743877838159,-2058697.94832453,0.0002,2]
[357190357,1743877838171,-409.045,0.0002,2]
[357190358,1743877838182,-901.47827514,0.0002,2]
[357190359,1743877838193,-316.01150826,0.0002,2]
[357190360,1743877838215,-44017.60000002,0.0002,2]
[357190361,1743877838226,-4232.84058231,0.0002,2]
[357190362,1743877838269,-55214.04925261,0.0002,2]
[357190363,1743877838326,-605.21999996,0.0002,2]
[357190364,1743877838338,-11198.63998234,0.0002,2]
[357190365,1743877838349,-3929.31844062,0.0002,2]
[357190366,1743877838403,-669160.53762143,0.0002,2]
[357190367,1743877838419,-72891.30602632,0.0002,2]
[357190368,1743877838431,-699.9668291,0.0002,2]
[357190369,1743877838442,-418.425,0.0002,2]
[357190473,1743877840765,-0.00979735,0.0002,2]
[357190476,1743877840777,-3344.27434338,0.0002,2]
[357190478,1743877840788,-12252.1478167,0.0002,2]
[357190480,1743877840800,-1245.9227312,0.0002,2]
[357190484,1743877840815,-373.96,0.0002,2]
[357190488,1743877840830,-8239.47349776,0.0002,2]
[357190492,1743877840845,-479.45831315,0.0002,2]
[357190495,1743877840856,-2000.0,0.0002,2]
[357190577,1743877843367,-841.0,0.0002,2]
[357190578,1743877843423,-268735.68373219,0.0002,2]
[357190579,1743877843435,-107356.14420691,0.0002,2]
[357190580,1743877843446,-7852.82793431,0.0002,4]
[357190581,1743877843456,-151.28,0.0002,2]
[357190582,1743877843466,-151.28,0.0002,2]
[357190583,1743877843476,-151.28,0.0002,2]
[357190584,1743877843486,-151.28,0.0002,2]
[357190585,1743877843497,-151.28,0.0002,2]
[357190586,1743877843508,-151.28,0.0002,2]
[357190587,1743877843517,-267.39447049,0.00021137,2]
[357190588,1743877843527,-162.70196799,0.00021577,2]
[357190589,1743877843537,-2349.0,0.000221,5]
[357190590,1743877843546,-267.39447049,0.00022373,2]
[357190591,1743877843556,-2431.50561068,0.000231,2]
[357190592,1743877843566,-267.39447049,0.0002361,2]
[357190593,1743877843577,-5000.00189875,0.00024,5]
[357190594,1743877843587,-2431.50561066,0.00024011,2]
[357190595,1743877843597,-500.0,0.00024773,2]
[357190596,1743877843607,-500.0,0.00024773,2]
[357190597,1743877843616,-500.0,0.00024773,2]
[357190598,1743877843625,-500.0,0.00024773,2]
[357190599,1743877843634,-151.28,0.0002479,2]
[357190600,1743877843643,-343.17384442,0.0002479,2]
[357190602,1743877843653,-429469.216878,0.000248,3]
[357190604,1743877843663,-267.39447049,0.00024846,2]
[357190606,1743877843672,-70422.56840134,0.000249,3]
[357190679,1743877844487,-2423.99537004,0.000249,3]
[357190680,1743877844502,-713.03117006,0.000249,3]
[357190681,1743877844515,-490.8405171,0.000249,3]
[357190683,1743877844526,-4412.2662146,0.000249,3]
[357190856,1743877846342,-1006.23121975,0.000249,3]
[357190857,1743877846509,-264.208,0.000249,3]
[357190858,1743877846618,-637.59686912,0.000249,3]
[357190882,1743877858920,164.1613688,0.0002,14]
[357190884,1743878527382,1947.23,0.0003614,30]
[357190885,1743878587076,1000.0,0.0003614,30]
[357190886,1743878588182,1000.0,0.0003614,30]
[357190887,1743878589751,1000.0,0.0003614,30]
[357190888,1743878650319,-250.0,0.00019,2]
[357190982,1743879031422,-300.0,0.00021,2]
[357190983,1743879031432,-350.0,0.00023,2]
[357190984,1743879031441,-422.97095708,0.00024602,2]
[357190985,1743879031451,-183.1738939,0.0002472,2]
[357190986,1743879031463,-252.2,0.0002472,2]